Business Unit,Business Code,Service Code,Service Label,Organisational Unit,Expenditure,Invoice/Credit Note,Net Payments,Transaction Number,Payment Date,Supplier ID,Supplier Name
North West Leicestershire District Council,31UH,LDLS,Legal & Democratic,Legal Services,Legal & Professional Services,Invoice,654.40,1297250,03/12/2014,A000251,Browne Jacobson
North West Leicestershire District Council,31UH,EXCH,Finance,Exchequer Services,Agency Staff,Invoice,"16,447.96",1297228,03/12/2014,A036958,Comensura Limited
North West Leicestershire District Council,31UH,FINPLA,Finance,Financial Planning,Transport - Operating Leases,Invoice,"2,433.57",1297281,03/12/2014,A020440,Capital Bank Leasing Ltd
North West Leicestershire District Council,31UH,HPLC,Leisure Centres,Hood Park Leisure Centre,Telephone Charge / Rental,Invoice,624.39,1297295,03/12/2014,A035373,Virgin Media Business
North West Leicestershire District Council,31UH,HRAHRM,Housing Repairs,HRA Housing Repairs & Maintenance,Tipping Charges,Invoice,850.25,1297312,03/12/2014,A035471,Ward Recycling
North West Leicestershire District Council,31UH,ICT,Information Technology,ICT Services,Admin Equipment - Maintenance,Credit Note,472.12,1297327,,A040684,Ultra Electronics AEP Payments Ltd
North West Leicestershire District Council,31UH,EES,Environmental Health,Environmental Services,Grants,Invoice,780.00,1297368,03/12/2014,A038386,David Kirton Designs
North West Leicestershire District Council,31UH,EES,Environmental Health,Environmental Services,Grants,Invoice,"4,800.00",1297369,03/12/2014,A038469,Leicestershire County Council
North West Leicestershire District Council,31UH,EES,Environmental Health,Environmental Services,Grants,Invoice,"2,500.00",1297370,03/12/2014,A038469,Leicestershire County Council
North West Leicestershire District Council,31UH,EES,Environmental Health,Environmental Services,Grants,Invoice,975.00,1297371,03/12/2014,A038386,David Kirton Designs
North West Leicestershire District Council,31UH,ENOP,Street Management,Environment Parks,External Materials,Invoice,589.14,1297430,03/12/2014,A038499,Western Power Distribution
North West Leicestershire District Council,31UH,ENOT,Street Management,Environment Transport,Repairs - Parts,Invoice,610.76,1297733,03/12/2014,A001647,Terberg Matec Uk
North West Leicestershire District Council,31UH,ECP,Planning & Development,Environment Community Planning,Consultants Fees,Invoice,"10,000.00",1297436,03/12/2014,A000950,Leicestershire County Council
North West Leicestershire District Council,31UH,ECP,Planning & Development,Environment Community Planning,External Legal Fees & Advice,Invoice,"7,600.00",1297437,03/12/2014,A041191,GL Hearn
North West Leicestershire District Council,31UH,ECP,Planning & Development,Environment Community Planning,External Legal Fees & Advice,Invoice,500.00,1297439,03/12/2014,A041934,The Environmental Consultancy - re CGMS
North West Leicestershire District Council,31UH,ECP,Planning & Development,Environment Community Planning,External Legal Fees & Advice,Invoice,"3,250.00",1297448,03/12/2014,A028258,Peter Brett Associates T/a Roger Tym & P
North West Leicestershire District Council,31UH,HRAHM,Housing,HRA Housing Management,Miscellaneous,Invoice,680.00,1297757,10/12/2014,A039091,Energico
North West Leicestershire District Council,31UH,EXCH,Finance,Exchequer Services,Agency Staff,Invoice,"16,764.01",1297753,10/12/2014,A036958,Comensura Limited
North West Leicestershire District Council,31UH,HRAHRM,Housing Repairs,HRA Housing Repairs & Maintenance,Licences,Invoice,"2,420.00",1297842,10/12/2014,A032953,M3 Housing Limited
North West Leicestershire District Council,31UH,LCM,Leisure & Culture,Leisure & Cult Mangt,Service Charges,Invoice,"1,492.13",1297845,10/12/2014,A000950,Leicestershire County Council
North West Leicestershire District Council,31UH,LDLS,Legal & Democratic,Legal Services,External Legal Fees & Advice,Invoice,540.00,1297945,10/12/2014,A041876,Marrons Shakespeares
North West Leicestershire District Council,31UH,EES,Environmental Health,Environmental Services,Grants,Invoice,"4,688.20",1297974,10/12/2014,A027781,J Rennocks & Son Ltd
North West Leicestershire District Council,31UH,EES,Environmental Health,Environmental Services,Grants,Invoice,"4,604.01",1297975,10/12/2014,A001092,John Merison BMC
North West Leicestershire District Council,31UH,EES,Environmental Health,Environmental Services,Grants,Invoice,"1,595.76",1297976,10/12/2014,A027561,MJM Plumbing & Heating Services (Midland
North West Leicestershire District Council,31UH,CS,Communications,Corporate - Customer Services,Equipment Operating Leases,Invoice,"2,552.28",1297814,10/12/2014,A031590,Neopost Finance Limited
North West Leicestershire District Council,31UH,EEHL,Environmental Health,Environmental Health & Licensing,Agency Staff,Credit Note,629.00,1297671,,A031571,HBHC Synergy Ltd
North West Leicestershire District Council,31UH,EXCH,Finance,Exchequer Services,Other Miscellaneous Expenses,Invoice,"2,364.65",1297678,03/12/2014,A010859,Selima Limited
North West Leicestershire District Council,31UH,PROPCL,Property Services,Property Commercial Lettings,Water Charges (Metered),Invoice,517.59,1297680,03/12/2014,A001468,Severn Trent Water Limited
North West Leicestershire District Council,31UH,PROPCL,Property Services,Property Commercial Lettings,Water Charges (Metered),Invoice,"2,085.24",1297681,03/12/2014,A001468,Severn Trent Water Limited
North West Leicestershire District Council,31UH,HR,Corporate Director,Human Resources,Items To Be Leased,Invoice,"3,399.27",1297728,,A039405,Inchcape Fleet Solutions
North West Leicestershire District Council,31UH,EXCH,Finance,Exchequer Services,Items To Be Leased,Invoice,"3,696.23",1297730,03/12/2014,A039405,Inchcape Fleet Solutions
North West Leicestershire District Council,31UH,HRAHM,Housing,HRA Housing Management,Gas,Invoice,531.40,1297988,10/12/2014,A034733,British Gas Business
North West Leicestershire District Council,31UH,HRAHRM,Housing Repairs,HRA Housing Repairs & Maintenance,Contract Payments (Dws) Ext,Invoice,"1,620.00",1297991,10/12/2014,A022373,Cresswell Property Surveys
North West Leicestershire District Council,31UH,HRAHRM,Housing Repairs,HRA Housing Repairs & Maintenance,Contract Payments (Dws) Ext,Invoice,"1,220.00",1297992,10/12/2014,A022373,Cresswell Property Surveys
North West Leicestershire District Council,31UH,HRAHRM,Housing Repairs,HRA Housing Repairs & Maintenance,Consultants Fees,Invoice,875.00,1297993,10/12/2014,A036053,Cope Safety Management Limited
North West Leicestershire District Council,31UH,HRAHRM,Housing Repairs,HRA Housing Repairs & Maintenance,Consultants Fees,Invoice,250.00,1297994,10/12/2014,A036053,Cope Safety Management Limited
North West Leicestershire District Council,31UH,HRAHRM,Housing Repairs,HRA Housing Repairs & Maintenance,Contract Payments (Dws) Ext,Invoice,"25,059.48",1297995,10/12/2014,A039980,Kier Services Maintenance East Ltd
North West Leicestershire District Council,31UH,HRAHRM,Housing Repairs,HRA Housing Repairs & Maintenance,Decent Homes  repairs and maintenance,Invoice,"703,108.16",1298003,10/12/2014,A039980,Kier Services Maintenance East Ltd
North West Leicestershire District Council,31UH,HRAHRM,Housing Repairs,HRA Housing Repairs & Maintenance,Decent Homes  repairs and maintenance,Invoice,"496,346.56",1298004,10/12/2014,A039973,Lovell Partnerships Ltd
North West Leicestershire District Council,31UH,HRAHRM,Housing Repairs,HRA Housing Repairs & Maintenance,Electrical repairs,Invoice,266.73,1298006,10/12/2014,A026251,NICEIC Sales
North West Leicestershire District Council,31UH,EXCH,Finance,Exchequer Services,Electricity,Invoice,"7,597.19",1298086,10/12/2014,A034733,British Gas Business
North West Leicestershire District Council,31UH,LDLS,Legal & Democratic,Legal Services,External Legal Fees & Advice,Invoice,"1,327.50",1298094,10/12/2014,A041876,Marrons Shakespeares
North West Leicestershire District Council,31UH,LDLS,Legal & Democratic,Legal Services,Legal & Professional Services,Invoice,763.40,1298095,10/12/2014,A000251,Browne Jacobson
North West Leicestershire District Council,31UH,HLC,Leisure Centres,Hermitage Leisure Centre,Water Charges (Metered),Invoice,"1,457.93",1298097,10/12/2014,A001468,Severn Trent Water Limited
North West Leicestershire District Council,31UH,LDLS,Legal & Democratic,Legal Services,Interim Support,Invoice,"1,016.90",1298098,10/12/2014,A041876,Marrons Shakespeares
North West Leicestershire District Council,31UH,ENOT,Street Management,Environment Transport,Water Charges (Metered),Invoice,"1,608.74",1298102,10/12/2014,A001468,Severn Trent Water Limited
North West Leicestershire District Council,31UH,EXCH,Finance,Exchequer Services,Gas,Invoice,"4,086.65",1298079,09/12/2014,A000958,ESPO
North West Leicestershire District Council,31UH,EXCH,Finance,Exchequer Services,Gas,Invoice,"12,516.25",1298080,,A035709,Corona Energy Retail 4 Ltd
North West Leicestershire District Council,31UH,LDLS,Legal & Democratic,Legal Services,Subscriptions,Invoice,500.00,1298083,09/12/2014,A032156,Information Commissioner
North West Leicestershire District Council,31UH,HRAHM,Housing,HRA Housing Management,Legal & Professional Services,Invoice,"3,190.00",1298085,09/12/2014,A033971,HMCS
North West Leicestershire District Council,31UH,EXCH,Finance,Exchequer Services,Gas,Invoice,"13,322.53",1298087,09/12/2014,A035709,Corona Energy Retail 4 Ltd
North West Leicestershire District Council,31UH,ENOT,Street Management,Environment Transport,Repairs - Parts,Invoice,478.17,1295336,17/12/2014,A001647,Terberg Matec Uk
North West Leicestershire District Council,31UH,CULTYP,Leisure & Culture,Cultural Services Children & YoungPeople,Extended Services,Invoice,"6,390.00",1298277,17/12/2014,A039843,Women's Aid Leicestershire Ltd
North West Leicestershire District Council,31UH,CULTIC,Leisure & Culture,Cultural Services TIC,Theatre Tickets,Invoice,"4,586.40",1298279,17/12/2014,A021686,Ashby Dramatic Society
North West Leicestershire District Council,31UH,CULTIC,Leisure & Culture,Cultural Services TIC,Premises Rents,Invoice,650.00,1298281,17/12/2014,A000950,Leicestershire County Council
North West Leicestershire District Council,31UH,EES,Environmental Health,Environmental Services,Grants,Invoice,"3,550.00",1298265,17/12/2014,A038668,Adaptions
North West Leicestershire District Council,31UH,EES,Environmental Health,Environmental Services,Grants,Invoice,"3,275.00",1298264,17/12/2014,A038469,Leicestershire County Council
North West Leicestershire District Council,31UH,EES,Environmental Health,Environmental Services,Grants,Invoice,"2,685.00",1298263,17/12/2014,A038469,Leicestershire County Council
North West Leicestershire District Council,31UH,EES,Environmental Health,Environmental Services,Grants,Invoice,612.98,1298262,17/12/2014,A038469,Leicestershire County Council
North West Leicestershire District Council,31UH,HRAHRM,Housing Repairs,HRA Housing Repairs & Maintenance,Contract Payments (Dws) Ext,Invoice,"1,620.00",1298261,17/12/2014,A022373,Cresswell Property Surveys
North West Leicestershire District Council,31UH,HRAHRM,Housing Repairs,HRA Housing Repairs & Maintenance,Consultants Fees,Invoice,625.00,1298260,17/12/2014,A036053,Cope Safety Management Limited
North West Leicestershire District Council,31UH,EXCH,Finance,Exchequer Services,Collection - Cash,Invoice,"1,104.06",1298183,17/12/2014,A004468,Kings Armoured Security Ser
North West Leicestershire District Council,31UH,HS,Housing Strategy,Community - Housing Strategy,Rent Deposit Scheme,Invoice,375.00,1298182,17/12/2014,A039294,SJN Property Services
North West Leicestershire District Council,31UH,NACN,Neighbourhoods & Communities,N & C Neighbourhoods,Green Footprints Exp,Invoice,300.00,1298160,17/12/2014,A041961,Donisthorpe Woodland Park Volunteer Group
North West Leicestershire District Council,31UH,NACN,Neighbourhoods & Communities,N & C Neighbourhoods,Green Footprints Exp,Invoice,300.00,1298159,17/12/2014,A000089,Ashby Woulds Town Council
North West Leicestershire District Council,31UH,NACN,Neighbourhoods & Communities,N & C Neighbourhoods,Green Footprints Exp,Invoice,300.00,1298158,17/12/2014,A037029,Hugglescote & Donington Allotments
North West Leicestershire District Council,31UH,FINPLA,Finance,Financial Planning,Transport - Operating Leases,Invoice,"22,844.51",1298322,17/12/2014,A030097,SG Equipment Finance Limited
North West Leicestershire District Council,31UH,NACN,Neighbourhoods & Communities,N & C Neighbourhoods,Grant - Mantle Arts,Invoice,"3,500.00",1298136,17/12/2014,A001039,Mantle Community Arts Limit
North West Leicestershire District Council,31UH,EXCH,Finance,Exchequer Services,Agency Staff,Invoice,"17,188.22",1298130,17/12/2014,A036958,Comensura Limited
North West Leicestershire District Council,31UH,CS,Communications,Corporate - Customer Services,Postages,Invoice,"4,000.00",1298105,17/12/2014,A000079,Neopost Limited
North West Leicestershire District Council,31UH,HRAHM,Housing,HRA Housing Management,Electricity,Invoice,291.08,1298287,17/12/2014,A000528,E.on
North West Leicestershire District Council,31UH,HRAHM,Housing,HRA Housing Management,Contract Cleaning,Invoice,"2,721.61",1298288,17/12/2014,A000950,Leicestershire County Council
North West Leicestershire District Council,31UH,HRAHM,Housing,HRA Housing Management,Contract Cleaning,Invoice,"6,479.03",1298294,17/12/2014,A000950,Leicestershire County Council
North West Leicestershire District Council,31UH,HPLC,Leisure Centres,Hood Park Leisure Centre,Electricity,Invoice,"1,425.69",1298295,17/12/2014,A030266,Southern Electric
North West Leicestershire District Council,31UH,HPLC,Leisure Centres,Hood Park Leisure Centre,Water Charges (Metered),Invoice,"1,021.39",1298297,17/12/2014,A001468,Severn Trent Water Limited
North West Leicestershire District Council,31UH,HRAHM,Housing,HRA Housing Management,Water Charges (Metered),Invoice,310.12,1298298,17/12/2014,A001468,Severn Trent Water Limited
North West Leicestershire District Council,31UH,PROPFM,Property Services,Property Facilities Management,Water Charges (Metered),Invoice,390.46,1298299,17/12/2014,A001468,Severn Trent Water Limited
North West Leicestershire District Council,31UH,FINPLA,Finance,Financial Planning,Legal & Professional Services,Invoice,"3,263.40",1298427,17/12/2014,A041842,Wilks Head & Eve LLP
North West Leicestershire District Council,31UH,FINPLA,Finance,Financial Planning,Legal & Professional Services,Invoice,"5,022.00",1298428,17/12/2014,A041842,Wilks Head & Eve LLP
North West Leicestershire District Council,31UH,EES,Environmental Health,Environmental Services,Stray Dog Service,Invoice,"1,454.02",1298328,17/12/2014,A000385,College Garth Boarding Kenn
North West Leicestershire District Council,31UH,ECCTV,Planning & Development,Environment - Town Centre/CCTV,Electricity,Invoice,"1,241.78",1298334,17/12/2014,A030266,Southern Electric
North West Leicestershire District Council,31UH,FINPLA,Finance,Financial Planning,Transport - Operating Leases,Invoice,"9,263.79",1298323,17/12/2014,A030097,SG Equipment Finance Limited
North West Leicestershire District Council,31UH,EXCH,Finance,Exchequer Services,Agency Staff,Invoice,"11,267.71",1298439,17/12/2014,A036958,Comensura Limited
North West Leicestershire District Council,31UH,ECCTV,Planning & Development,Environment - Town Centre/CCTV,Water Charges (Metered),Invoice,463.23,1298336,17/12/2014,A001468,Severn Trent Water Limited
North West Leicestershire District Council,31UH,HRAHRM,Housing Repairs,HRA Housing Repairs & Maintenance,Housing repairs,Invoice,436.29,1297401,03/12/2014,A031787,Laker BMS Ltd
North West Leicestershire District Council,31UH,HRAHRM,Housing Repairs,HRA Housing Repairs & Maintenance,Housing repairs,Invoice,"2,504.76",1297398,03/12/2014,A031787,Laker BMS Ltd
North West Leicestershire District Council,31UH,HRAHRM,Housing Repairs,HRA Housing Repairs & Maintenance,Housing repairs,Invoice,328.65,1297396,03/12/2014,A031787,Laker BMS Ltd
North West Leicestershire District Council,31UH,HRAHRM,Housing Repairs,HRA Housing Repairs & Maintenance,Contract Payments (Dws) Ext,Invoice,"1,686.19",1297392,03/12/2014,A031787,Laker BMS Ltd
North West Leicestershire District Council,31UH,HRAHRM,Housing Repairs,HRA Housing Repairs & Maintenance,Contract Payments (Dws) Ext,Invoice,350.00,1297391,03/12/2014,A031787,Laker BMS Ltd
North West Leicestershire District Council,31UH,HRAHRM,Housing Repairs,HRA Housing Repairs & Maintenance,External Decorations,Invoice,262.11,1297475,03/12/2014,A035827,Novus Property Solutions Limited
North West Leicestershire District Council,31UH,HRAHRM,Housing Repairs,HRA Housing Repairs & Maintenance,External Decorations,Invoice,262.11,1297476,03/12/2014,A035827,Novus Property Solutions Limited
North West Leicestershire District Council,31UH,HRAHRM,Housing Repairs,HRA Housing Repairs & Maintenance,External Decorations,Invoice,262.11,1297477,03/12/2014,A035827,Novus Property Solutions Limited
North West Leicestershire District Council,31UH,HRAHRM,Housing Repairs,HRA Housing Repairs & Maintenance,External Decorations,Invoice,262.11,1297473,03/12/2014,A035827,Novus Property Solutions Limited
North West Leicestershire District Council,31UH,HRAHRM,Housing Repairs,HRA Housing Repairs & Maintenance,External Decorations,Invoice,262.11,1297474,03/12/2014,A035827,Novus Property Solutions Limited
North West Leicestershire District Council,31UH,HRAHRM,Housing Repairs,HRA Housing Repairs & Maintenance,External Decorations,Invoice,262.11,1297482,03/12/2014,A035827,Novus Property Solutions Limited
North West Leicestershire District Council,31UH,HRAHRM,Housing Repairs,HRA Housing Repairs & Maintenance,External Decorations,Invoice,262.11,1297478,03/12/2014,A035827,Novus Property Solutions Limited
North West Leicestershire District Council,31UH,HRAHRM,Housing Repairs,HRA Housing Repairs & Maintenance,External Decorations,Invoice,262.11,1297479,03/12/2014,A035827,Novus Property Solutions Limited
North West Leicestershire District Council,31UH,HRAHRM,Housing Repairs,HRA Housing Repairs & Maintenance,External Decorations,Invoice,262.11,1297480,03/12/2014,A035827,Novus Property Solutions Limited
North West Leicestershire District Council,31UH,HRAHRM,Housing Repairs,HRA Housing Repairs & Maintenance,External Decorations,Invoice,262.11,1297481,03/12/2014,A035827,Novus Property Solutions Limited
North West Leicestershire District Council,31UH,HRAHRM,Housing Repairs,HRA Housing Repairs & Maintenance,External Decorations,Invoice,527.76,1297529,03/12/2014,A035827,Novus Property Solutions Limited
North West Leicestershire District Council,31UH,HRAHRM,Housing Repairs,HRA Housing Repairs & Maintenance,External Decorations,Invoice,530.01,1297530,03/12/2014,A035827,Novus Property Solutions Limited
North West Leicestershire District Council,31UH,HRAHRM,Housing Repairs,HRA Housing Repairs & Maintenance,Prepainting,Invoice,381.38,1297531,03/12/2014,A035827,Novus Property Solutions Limited
North West Leicestershire District Council,31UH,HRAHRM,Housing Repairs,HRA Housing Repairs & Maintenance,External Decorations,Invoice,658.93,1297534,03/12/2014,A035827,Novus Property Solutions Limited
North West Leicestershire District Council,31UH,HRAHRM,Housing Repairs,HRA Housing Repairs & Maintenance,Housing repairs,Invoice,805.00,1297385,03/12/2014,A031787,Laker BMS Ltd
North West Leicestershire District Council,31UH,HRAHRM,Housing Repairs,HRA Housing Repairs & Maintenance,Housing repairs,Invoice,308.31,1297384,03/12/2014,A031787,Laker BMS Ltd
North West Leicestershire District Council,31UH,HRAHRM,Housing Repairs,HRA Housing Repairs & Maintenance,Contract Payments (Dws) Ext,Invoice,"1,950.74",1297383,03/12/2014,A031787,Laker BMS Ltd
North West Leicestershire District Council,31UH,HRAHRM,Housing Repairs,HRA Housing Repairs & Maintenance,Housing repairs,Invoice,"2,968.62",1297382,03/12/2014,A031787,Laker BMS Ltd
North West Leicestershire District Council,31UH,HRAHRM,Housing Repairs,HRA Housing Repairs & Maintenance,Housing repairs,Invoice,"1,183.35",1297381,03/12/2014,A031787,Laker BMS Ltd
North West Leicestershire District Council,31UH,HRAHRM,Housing Repairs,HRA Housing Repairs & Maintenance,Housing repairs,Invoice,"3,032.09",1297380,03/12/2014,A031787,Laker BMS Ltd
North West Leicestershire District Council,31UH,HRAHRM,Housing Repairs,HRA Housing Repairs & Maintenance,External Decorations,Invoice,262.11,1297669,03/12/2014,A035827,Novus Property Solutions Limited
North West Leicestershire District Council,31UH,HRAHRM,Housing Repairs,HRA Housing Repairs & Maintenance,Contract Payments (Dws) Ext,Invoice,"10,284.75",1297848,10/12/2014,A028261,TECSERV UK LIMITED
North West Leicestershire District Council,31UH,HRAHRM,Housing Repairs,HRA Housing Repairs & Maintenance,Housing repairs,Invoice,"2,790.11",1297849,10/12/2014,A031787,Laker BMS Ltd
North West Leicestershire District Council,31UH,HRAHRM,Housing Repairs,HRA Housing Repairs & Maintenance,Housing repairs,Invoice,"2,552.42",1297851,10/12/2014,A031787,Laker BMS Ltd
North West Leicestershire District Council,31UH,HRAHRM,Housing Repairs,HRA Housing Repairs & Maintenance,Housing repairs,Invoice,333.47,1297853,10/12/2014,A031787,Laker BMS Ltd
North West Leicestershire District Council,31UH,HRAHRM,Housing Repairs,HRA Housing Repairs & Maintenance,Contract Payments (Dws) Ext,Invoice,"29,803.45",1297847,10/12/2014,A028261,TECSERV UK LIMITED
North West Leicestershire District Council,31UH,HRAHRM,Housing Repairs,HRA Housing Repairs & Maintenance,Supply and fit of Doors,Invoice,685.75,1298187,17/12/2014,A038041,I G Doors Limited
North West Leicestershire District Council,31UH,HRAHRM,Housing Repairs,HRA Housing Repairs & Maintenance,Supply and fit of Doors,Invoice,288.67,1298188,17/12/2014,A038041,I G Doors Limited
North West Leicestershire District Council,31UH,HRAHRM,Housing Repairs,HRA Housing Repairs & Maintenance,Supply and fit of Doors,Invoice,288.67,1298189,17/12/2014,A038041,I G Doors Limited
North West Leicestershire District Council,31UH,HRAHRM,Housing Repairs,HRA Housing Repairs & Maintenance,Supply and fit of Doors,Invoice,296.00,1298190,17/12/2014,A038041,I G Doors Limited
North West Leicestershire District Council,31UH,HRAHRM,Housing Repairs,HRA Housing Repairs & Maintenance,Supply and fit of Doors,Invoice,296.00,1298191,17/12/2014,A038041,I G Doors Limited
North West Leicestershire District Council,31UH,HRAHRM,Housing Repairs,HRA Housing Repairs & Maintenance,Contract Payments (Dws) Ext,Invoice,"3,457.00",1298192,17/12/2014,A041790,KONE
North West Leicestershire District Council,31UH,HRAHRM,Housing Repairs,HRA Housing Repairs & Maintenance,Contract Payments (Dws) Ext,Invoice,"4,549.00",1298193,17/12/2014,A041790,KONE
North West Leicestershire District Council,31UH,HRAHRM,Housing Repairs,HRA Housing Repairs & Maintenance,Housing repairs,Invoice,418.19,1297856,10/12/2014,A031787,Laker BMS Ltd
North West Leicestershire District Council,31UH,HRAHRM,Housing Repairs,HRA Housing Repairs & Maintenance,Housing repairs,Invoice,"1,251.60",1297860,10/12/2014,A031787,Laker BMS Ltd
North West Leicestershire District Council,31UH,HRAHRM,Housing Repairs,HRA Housing Repairs & Maintenance,Contract Payments (Dws) Ext,Invoice,507.52,1297861,10/12/2014,A031787,Laker BMS Ltd
North West Leicestershire District Council,31UH,HRAHRM,Housing Repairs,HRA Housing Repairs & Maintenance,Window Repair and Maintenance,Invoice,603.53,1297862,10/12/2014,A036741,SBP Limited (Trading as Plastal & Permad
North West Leicestershire District Council,31UH,HRAHRM,Housing Repairs,HRA Housing Repairs & Maintenance,Window Repair and Maintenance,Invoice,707.10,1297866,10/12/2014,A036741,SBP Limited (Trading as Plastal & Permad
North West Leicestershire District Council,31UH,HRAHRM,Housing Repairs,HRA Housing Repairs & Maintenance,Window Repair and Maintenance,Invoice,"1,037.88",1297867,10/12/2014,A036741,SBP Limited (Trading as Plastal & Permad
North West Leicestershire District Council,31UH,HRAHRM,Housing Repairs,HRA Housing Repairs & Maintenance,Window Repair and Maintenance,Invoice,503.51,1297868,10/12/2014,A036741,SBP Limited (Trading as Plastal & Permad
North West Leicestershire District Council,31UH,HRAHRM,Housing Repairs,HRA Housing Repairs & Maintenance,Window Repair and Maintenance,Invoice,"3,891.33",1297869,10/12/2014,A036741,SBP Limited (Trading as Plastal & Permad
North West Leicestershire District Council,31UH,HRAHRM,Housing Repairs,HRA Housing Repairs & Maintenance,Window Repair and Maintenance,Invoice,"2,657.05",1297870,10/12/2014,A036741,SBP Limited (Trading as Plastal & Permad
North West Leicestershire District Council,31UH,HRAHRM,Housing Repairs,HRA Housing Repairs & Maintenance,Contract Payments (Dws) Ext,Invoice,"4,549.00",1298194,17/12/2014,A041790,KONE
North West Leicestershire District Council,31UH,HRAHRM,Housing Repairs,HRA Housing Repairs & Maintenance,Contract Payments (Dws) Ext,Invoice,"3,997.00",1298195,17/12/2014,A041790,KONE
North West Leicestershire District Council,31UH,HRAHRM,Housing Repairs,HRA Housing Repairs & Maintenance,Contract Payments (Dws) Ext,Invoice,455.00,1298196,17/12/2014,A041868,Aspect Contracts Limited
North West Leicestershire District Council,31UH,HRAHRM,Housing Repairs,HRA Housing Repairs & Maintenance,Contract Payments (Dws) Ext,Invoice,380.00,1298197,17/12/2014,A041868,Aspect Contracts Limited
North West Leicestershire District Council,31UH,HRAHRM,Housing Repairs,HRA Housing Repairs & Maintenance,Housing repairs,Invoice,"1,631.39",1298199,17/12/2014,A031787,Laker BMS Ltd
North West Leicestershire District Council,31UH,HRAHRM,Housing Repairs,HRA Housing Repairs & Maintenance,Housing repairs,Invoice,"1,630.51",1298200,17/12/2014,A031787,Laker BMS Ltd
North West Leicestershire District Council,31UH,HRAHRM,Housing Repairs,HRA Housing Repairs & Maintenance,Housing repairs,Invoice,672.06,1298201,17/12/2014,A031787,Laker BMS Ltd
North West Leicestershire District Council,31UH,HRAHRM,Housing Repairs,HRA Housing Repairs & Maintenance,Contract Payments (Dws) Ext,Invoice,300.89,1298206,17/12/2014,A031787,Laker BMS Ltd
North West Leicestershire District Council,31UH,HRAHRM,Housing Repairs,HRA Housing Repairs & Maintenance,Housing repairs,Invoice,800.24,1298209,17/12/2014,A031787,Laker BMS Ltd
North West Leicestershire District Council,31UH,HRAHRM,Housing Repairs,HRA Housing Repairs & Maintenance,Housing repairs,Invoice,793.69,1298212,17/12/2014,A031787,Laker BMS Ltd
North West Leicestershire District Council,31UH,CP,Communications,Corporate - Communications,Other Miscellaneous Expenses,Invoice,375.00,1296917,03/12/2014,A025348,Reflec Signs & Graphics Ltd
North West Leicestershire District Council,31UH,ENOP,Street Management,Environment Parks,External Materials,Invoice,"2,100.00",1296972,03/12/2014,A039324,Four Counties Tree Specialists Ltd
North West Leicestershire District Council,31UH,ENOT,Street Management,Environment Transport,Repairs - Parts,Invoice,284.09,1297215,03/12/2014,A001540,Spaldings (UK) Limited
North West Leicestershire District Council,31UH,FINPLA,Finance,Financial Planning,Legal & Professional Services,Invoice,"14,000.00",1297217,03/12/2014,A000323,Charnwood Borough Council
North West Leicestershire District Council,31UH,HLC,Leisure Centres,Hermitage Leisure Centre,Water Treatment,Invoice,"1,038.47",1297226,03/12/2014,A001591,Stowlin Ltd
North West Leicestershire District Council,31UH,CULTEV,Leisure & Culture,Cultural Services Arts & Events,Other Miscellaneous Expenses,Invoice,270.50,1297227,03/12/2014,A015349,BE Furniture Ltd t/a BE Event Hire
North West Leicestershire District Council,31UH,ENOWM,Street Management,Environment Waste Management,Expenditure against earmarked reserve,Invoice,455.00,1297231,03/12/2014,A036860,Agripa Solutions Limited
North West Leicestershire District Council,31UH,HLC,Leisure Centres,Hermitage Leisure Centre,General Repairs,Invoice,338.00,1297234,03/12/2014,A000454,Dalesauna Limited
North West Leicestershire District Council,31UH,HPBC,Leisure Centres,Hood Park Bar and Catering,Bar Provisions,Invoice,360.24,1297237,03/12/2014,A001264,Palmer Harvey Mclane Ltd
North West Leicestershire District Council,31UH,HS,Housing Strategy,Community - Housing Strategy,Other Services,Invoice,420.00,1297249,03/12/2014,A032364,Pinewood Lodge
North West Leicestershire District Council,31UH,ENOP,Street Management,Environment Parks,Operational Equipment - Purchases,Invoice,364.00,1297257,03/12/2014,A001392,Rigby Taylor Limited
North West Leicestershire District Council,31UH,ENOT,Street Management,Environment Transport,Repairs - Parts,Invoice,"1,304.88",1297264,03/12/2014,A001445,Scarab Sweepers Limited
North West Leicestershire District Council,31UH,EPP,Planning & Development,Environment Planning Policy,Expenditure against earmarked reserve,Invoice,"5,000.00",1297265,03/12/2014,A041693,Atkins Ltd
North West Leicestershire District Council,31UH,ECP,Planning & Development,Environment Community Planning,Free Tree Scheme,Invoice,"3,312.60",1297267,03/12/2014,A037926,Cheviot Trees Limited
North West Leicestershire District Council,31UH,ENOT,Street Management,Environment Transport,Repairs - Parts,Invoice,258.80,1297273,03/12/2014,A000522,Dennis Eagle Limited
North West Leicestershire District Council,31UH,CULTEV,Leisure & Culture,Cultural Services Arts & Events,Coalville Christmas Decorations,Invoice,557.00,1297034,03/12/2014,A023267,Turnock Ltd
North West Leicestershire District Council,31UH,CULTEV,Leisure & Culture,Cultural Services Arts & Events,Coalville Christmas Decorations,Invoice,"1,190.00",1297035,03/12/2014,A023267,Turnock Ltd
North West Leicestershire District Council,31UH,PROPFM,Property Services,Property Facilities Management,General Repairs,Invoice,"1,325.25",1297277,03/12/2014,A039911,Fire Proof Ltd
North West Leicestershire District Council,31UH,FINPLA,Finance,Financial Planning,Shared Revs & Bens Partnership costs,Invoice,"18,897.00",1297278,03/12/2014,A000770,Hinckley & Bosworth Boroug
North West Leicestershire District Council,31UH,ENOGT,Street Management,Environment General Technician,Street Furniture,Invoice,"1,153.00",1297279,03/12/2014,A000389,Commutaports Ltd
North West Leicestershire District Council,31UH,ENOT,Street Management,Environment Transport,Repairs - Parts,Invoice,"1,086.13",1297282,03/12/2014,A038987,Platts Harris Ltd
North West Leicestershire District Council,31UH,ENOT,Street Management,Environment Transport,Purchases,Invoice,324.76,1297284,03/12/2014,A009933,Westbury Industrial Supplies
North West Leicestershire District Council,31UH,HPLC,Leisure Centres,Hood Park Leisure Centre,Equipment For Resale,Invoice,483.50,1297294,03/12/2014,A001833,Zoggs International Ltd
North West Leicestershire District Council,31UH,ESS,Street Management,Environment - Street Scene,Green Footprints Exp,Invoice,368.00,1296975,03/12/2014,A039764,EPT SERVICES
North West Leicestershire District Council,31UH,HPLC,Leisure Centres,Hood Park Leisure Centre,Maintenance/Office Expenditure,Invoice,576.15,1297266,03/12/2014,A001092,John Merison BMC
North West Leicestershire District Council,31UH,ENOP,Street Management,Environment Parks,External Materials,Invoice,260.30,1297306,03/12/2014,A000734,Harlow Bros Limited
North West Leicestershire District Council,31UH,FINPLA,Finance,Financial Planning,Shared Revs & Bens Partnership costs,Invoice,"221,741.91",1297352,03/12/2014,A000770,Hinckley & Bosworth Boroug
North West Leicestershire District Council,31UH,ENOP,Street Management,Environment Parks,General Repairs,Invoice,636.90,1297418,03/12/2014,A000546,Edmundson Electrical Limite
North West Leicestershire District Council,31UH,HPLC,Leisure Centres,Hood Park Leisure Centre,Operational Equipment,Invoice,250.27,1296961,03/12/2014,A000969,J P Lennard Ltd
North West Leicestershire District Council,31UH,ICT,Information Technology,ICT Services,Admin Equipment - Maintenance,Invoice,"7,443.00",1297222,03/12/2014,A039733,SSDP Corp Ltd c/o Syncsort Uk Limited
North West Leicestershire District Council,31UH,EDC,Planning & Development,Environment - Development Control,Advertising,Invoice,477.79,1297315,03/12/2014,A001395,Euro RSCG People T/A Havas People Ltd
North West Leicestershire District Council,31UH,EDC,Planning & Development,Environment - Development Control,Advertising,Invoice,547.31,1297316,03/12/2014,A001395,Euro RSCG People T/A Havas People Ltd
North West Leicestershire District Council,31UH,EDC,Planning & Development,Environment - Development Control,Advertising,Invoice,557.31,1297318,03/12/2014,A001395,Euro RSCG People T/A Havas People Ltd
North West Leicestershire District Council,31UH,EDC,Planning & Development,Environment - Development Control,Advertising,Invoice,557.31,1297319,03/12/2014,A001395,Euro RSCG People T/A Havas People Ltd
North West Leicestershire District Council,31UH,EDC,Planning & Development,Environment - Development Control,Advertising,Invoice,260.22,1297320,03/12/2014,A001395,Euro RSCG People T/A Havas People Ltd
North West Leicestershire District Council,31UH,ENOT,Street Management,Environment Transport,Items To Be Leased,Invoice,"20,350.50",1297373,03/12/2014,A041004,Ford Motor Company Ltd
North West Leicestershire District Council,31UH,ENOT,Street Management,Environment Transport,Items To Be Leased,Invoice,"20,350.50",1297374,03/12/2014,A041004,Ford Motor Company Ltd
North West Leicestershire District Council,31UH,ENOT,Street Management,Environment Transport,Items To Be Leased,Invoice,"20,350.50",1297376,03/12/2014,A041004,Ford Motor Company Ltd
North West Leicestershire District Council,31UH,ENOT,Street Management,Environment Transport,Items To Be Leased,Invoice,"20,350.50",1297377,03/12/2014,A041004,Ford Motor Company Ltd
North West Leicestershire District Council,31UH,ENOT,Street Management,Environment Transport,Repairs - Parts,Invoice,441.44,1297449,03/12/2014,A001647,Terberg Matec Uk
North West Leicestershire District Council,31UH,HLC,Leisure Centres,Hermitage Leisure Centre,General Repairs,Invoice,271.00,1297255,03/12/2014,A001092,John Merison BMC
North West Leicestershire District Council,31UH,ENOP,Street Management,Environment Parks,Operational Equipment - Purchases,Invoice,475.00,1297305,03/12/2014,A031850,Broxap Limited
North West Leicestershire District Council,31UH,EEHL,Environmental Health,Environmental Health & Licensing,Agency Staff,Invoice,629.00,1297670,,A031571,HBHC Synergy Ltd
North West Leicestershire District Council,31UH,EEHL,Environmental Health,Environmental Health & Licensing,Training Expenses,Invoice,525.00,1297672,03/12/2014,A031298,ABC Food Safety Ltd
North West Leicestershire District Council,31UH,PROPCL,Property Services,Property Commercial Lettings,General Repairs,Invoice,292.83,1297673,03/12/2014,A023130,Geze Uk Limited
North West Leicestershire District Council,31UH,ESS,Street Management,Environment - Street Scene,Repair of Parking Meters,Invoice,421.37,1294778,03/12/2014,A036055,Metric Group Ltd (Repairs)
North West Leicestershire District Council,31UH,ICT,Information Technology,ICT Services,Admin Equipment - Maintenance,Invoice,"6,688.62",1297724,03/12/2014,A036989,Sec-1
North West Leicestershire District Council,31UH,PROPCL,Property Services,Property Commercial Lettings,Postages,Invoice,"2,020.00",1297725,03/12/2014,A008204,Purchase Power
North West Leicestershire District Council,31UH,HPLC,Leisure Centres,Hood Park Leisure Centre,General Repairs,Invoice,300.00,1297303,03/12/2014,A041815,Dura-Sport (Leisure Care) Ltd
North West Leicestershire District Council,31UH,CULTEV,Leisure & Culture,Cultural Services Arts & Events,Other Miscellaneous Expenses,Invoice,632.50,1297734,03/12/2014,A040879,Sunshine Events UK Limited
North West Leicestershire District Council,31UH,ENOT,Street Management,Environment Transport,Repairs - Parts,Invoice,444.70,1297739,10/12/2014,A000522,Dennis Eagle Limited
North West Leicestershire District Council,31UH,ENOT,Street Management,Environment Transport,Repairs - Parts,Invoice,254.62,1297740,10/12/2014,A000522,Dennis Eagle Limited
North West Leicestershire District Council,31UH,ENOT,Street Management,Environment Transport,Repairs - Parts,Invoice,899.81,1297743,10/12/2014,A000522,Dennis Eagle Limited
North West Leicestershire District Council,31UH,ENOT,Street Management,Environment Transport,Non Scheduled Maintenance - Parts,Invoice,313.00,1297744,10/12/2014,A001106,Midland Hydraulic Services
North West Leicestershire District Council,31UH,ENOT,Street Management,Environment Transport,Repairs - Parts,Invoice,357.99,1297745,10/12/2014,A001540,Spaldings (UK) Limited
North West Leicestershire District Council,31UH,EPP,Planning & Development,Environment Planning Policy,Expenditure against earmarked reserve,Invoice,"1,000.00",1297750,10/12/2014,A040275,Experian Ltd
North West Leicestershire District Council,31UH,HLC,Leisure Centres,Hermitage Leisure Centre,Equipment For Resale,Invoice,483.50,1297767,10/12/2014,A001833,Zoggs International Ltd
North West Leicestershire District Council,31UH,HPLC,Leisure Centres,Hood Park Leisure Centre,Equipment For Resale,Invoice,784.08,1294277,10/12/2014,A001833,Zoggs International Ltd
North West Leicestershire District Council,31UH,ESS,Street Management,Environment - Street Scene,Training Expenses,Invoice,338.00,1296197,10/12/2014,A018837,Apse
North West Leicestershire District Council,31UH,SPA,Leisure & Culture,Sport & Physical Activity,Supporting Futures- Street Games,Invoice,340.10,1297332,10/12/2014,A001386,Revolution
North West Leicestershire District Council,31UH,ICT,Information Technology,ICT Services,Machinery & Equipment,Invoice,"5,400.83",1297421,10/12/2014,A041931,Geoff Smith Associates Ltd
North West Leicestershire District Council,31UH,EDC,Planning & Development,Environment - Development Control,Advertising,Invoice,390.10,1297747,10/12/2014,A001395,Euro RSCG People T/A Havas People Ltd
North West Leicestershire District Council,31UH,EDC,Planning & Development,Environment - Development Control,Advertising,Invoice,683.18,1297748,10/12/2014,A001395,Euro RSCG People T/A Havas People Ltd
North West Leicestershire District Council,31UH,CHEX,Chief Exec,Chief Executive,Interim Support,Invoice,529.37,1297780,10/12/2014,A041465,Cambridgeshire County Council
North West Leicestershire District Council,31UH,PROPFM,Property Services,Property Facilities Management,Building Security,Invoice,487.50,1297812,10/12/2014,A013049,Regarde Security Ltd
North West Leicestershire District Council,31UH,ENOGT,Street Management,Environment General Technician,Contract Payments (Other) Ext,Invoice,934.77,1297819,10/12/2014,A000940,Aggregate Industries Uk Ltd
North West Leicestershire District Council,31UH,EPP,Planning & Development,Environment Planning Policy,Maintenance Contract,Invoice,"3,623.28",1297782,10/12/2014,A036876,Essa Technology
North West Leicestershire District Council,31UH,PROPFM,Property Services,Property Facilities Management,Contract Payments (Dws) Ext,Invoice,"76,136.88",1297809,10/12/2014,A041939,Interserve Construction Limited
North West Leicestershire District Council,31UH,HLBC,Leisure Centres,Hermitage Bar & Catering,Catering Provisions,Invoice,447.69,1297816,10/12/2014,A001264,Palmer Harvey Mclane Ltd
North West Leicestershire District Council,31UH,ENOT,Street Management,Environment Transport,Purchases,Invoice,651.30,1297878,10/12/2014,A037391,Emo Oil Limited
North West Leicestershire District Council,31UH,ESS,Street Management,Environment - Street Scene,Protective Clothing,Invoice,304.83,1297223,10/12/2014,A039764,EPT SERVICES
North West Leicestershire District Council,31UH,PROPFM,Property Services,Property Facilities Management,Fire Precaution Appliances,Invoice,600.00,1297444,10/12/2014,A028261,TECSERV UK LIMITED
North West Leicestershire District Council,31UH,ICT,Information Technology,ICT Services,Machinery & Equipment,Invoice,"2,700.00",1297754,10/12/2014,A041704,StyleTech Solutions Ltd
North West Leicestershire District Council,31UH,ICT,Information Technology,ICT Services,Machinery & Equipment,Invoice,"2,700.00",1297755,10/12/2014,A041704,StyleTech Solutions Ltd
North West Leicestershire District Council,31UH,HR,Corporate Director,Human Resources,Employee Advertising- Internet,Invoice,"6,300.00",1297877,10/12/2014,A018047,Jobs Go Public Resorcing Limited
North West Leicestershire District Council,31UH,HLBC,Leisure Centres,Hermitage Bar & Catering,Catering Provisions,Invoice,447.90,1297884,10/12/2014,A000218,Briers Butchers Ltd
North West Leicestershire District Council,31UH,HLBC,Leisure Centres,Hermitage Bar & Catering,Catering Provisions,Invoice,269.04,1297895,10/12/2014,A000310,Catering Services (Supplies)
North West Leicestershire District Council,31UH,HLBC,Leisure Centres,Hermitage Bar & Catering,Bar Provisions,Invoice,454.37,1297899,10/12/2014,A039915,LWC - Birmingham
North West Leicestershire District Council,31UH,HPLC,Leisure Centres,Hood Park Leisure Centre,Minor Improvements Alterations,Invoice,"8,813.22",1297900,10/12/2014,A001092,John Merison BMC
North West Leicestershire District Council,31UH,HPBC,Leisure Centres,Hood Park Bar and Catering,Bar Provisions,Invoice,407.91,1297909,10/12/2014,A039915,LWC - Birmingham
North West Leicestershire District Council,31UH,CP,Communications,Corporate - Communications,Vision - printing and distribution,Invoice,400.00,1297926,10/12/2014,A041895,Hopwood Public Relations
North West Leicestershire District Council,31UH,ENOT,Street Management,Environment Transport,Purchases,Invoice,646.38,1297947,10/12/2014,A000625,Ford & Slater Group Ltd
North West Leicestershire District Council,31UH,FINPLA,Finance,Financial Planning,Revs & Bens expenditure funded by grants,Invoice,"7,304.40",1297954,10/12/2014,A002968,Capita Business Services Ltd
North West Leicestershire District Council,31UH,ICT,Information Technology,ICT Services,Machinery & Equipment,Invoice,"7,200.00",1297961,10/12/2014,A030931,Firmstep
North West Leicestershire District Council,31UH,ICT,Information Technology,ICT Services,Consumable Materials,Invoice,399.78,1297969,10/12/2014,A038178,Antalis Limited
North West Leicestershire District Council,31UH,SPA,Leisure & Culture,Sport & Physical Activity,Creche Provision,Invoice,311.40,1297889,10/12/2014,A041713,Heidi Bruce
North West Leicestershire District Council,31UH,EPP,Planning & Development,Environment Planning Policy,Expenditure against earmarked reserve,Invoice,"4,250.00",1297890,10/12/2014,A041191,GL Hearn
North West Leicestershire District Council,31UH,EEHL,Environmental Health,Environmental Health & Licensing,Professional Fees,Invoice,"1,155.00",1297928,10/12/2014,A027750,CIEH
North West Leicestershire District Council,31UH,HR,Corporate Director,Human Resources,Purchases,Invoice,"4,380.00",1297943,10/12/2014,A035521,PES Limited
North West Leicestershire District Council,31UH,ECCTV,Planning & Development,Environment - Town Centre/CCTV,Agency Staff,Invoice,"4,028.99",1297950,10/12/2014,A038132,Premier Security Services (Midlands) Lim
North West Leicestershire District Council,31UH,HLBC,Leisure Centres,Hermitage Bar & Catering,Catering Provisions,Invoice,259.18,1297964,10/12/2014,A027751,Slush Puppie Ltd
North West Leicestershire District Council,31UH,HS,Housing Strategy,Community - Housing Strategy,Spend to Save Schemes,Invoice,525.00,1297965,10/12/2014,A039843,Women's Aid Leicestershire Ltd
North West Leicestershire District Council,31UH,ENOT,Street Management,Environment Transport,Computing,Invoice,"1,853.97",1297968,10/12/2014,A041321,Oneserve Ltd
North West Leicestershire District Council,31UH,HRAOPS,Housing,HRA Older Persons Service,Transitional Protection,Invoice,485.28,1297970,10/12/2014,A000950,Leicestershire County Council
North West Leicestershire District Council,31UH,PROPFM,Property Services,Property Facilities Management,Catering Provisions,Invoice,326.00,1298018,10/12/2014,A037981,LTT Vending Limited
North West Leicestershire District Council,31UH,PROPFM,Property Services,Property Facilities Management,General Repairs,Invoice,313.18,1298020,10/12/2014,A030887,T Denman & Sons (Melton Mowbray) Ltd
North West Leicestershire District Council,31UH,PROPFM,Property Services,Property Facilities Management,General Repairs,Invoice,"3,515.00",1298021,10/12/2014,A030887,T Denman & Sons (Melton Mowbray) Ltd
North West Leicestershire District Council,31UH,HS,Housing Strategy,Community - Housing Strategy,Other Services,Invoice,560.00,1298089,10/12/2014,A032364,Pinewood Lodge
North West Leicestershire District Council,31UH,CHEX,Chief Exec,Chief Executive,Interim Support,Invoice,"1,081.90",1298100,10/12/2014,A040743,Janice Milsom
North West Leicestershire District Council,31UH,HLC,Leisure Centres,Hermitage Leisure Centre,Service Contracts,Invoice,350.00,1297302,17/12/2014,A041815,Dura-Sport (Leisure Care) Ltd
North West Leicestershire District Council,31UH,HPLC,Leisure Centres,Hood Park Leisure Centre,General Repairs,Invoice,360.00,1297735,17/12/2014,A000516,Technical Surfaces Ltd
North West Leicestershire District Council,31UH,AUDIT,Legal & Democratic,Audit Services,Purchases,Invoice,"2,500.00",1297779,17/12/2014,A033994,BiP Solutions Ltd
North West Leicestershire District Council,31UH,CULTEV,Leisure & Culture,Cultural Services Arts & Events,Coalville Christmas Decorations,Invoice,"5,669.45",1297829,17/12/2014,A023267,Turnock Ltd
North West Leicestershire District Council,31UH,ENOT,Street Management,Environment Transport,Repairs - Parts,Invoice,419.33,1298106,17/12/2014,A038987,Platts Harris Ltd
North West Leicestershire District Council,31UH,ESS,Street Management,Environment - Street Scene,Stationery,Invoice,822.40,1298107,17/12/2014,A035478,Nagels UK Limited
North West Leicestershire District Council,31UH,ENOT,Street Management,Environment Transport,Gas,Invoice,"1,106.96",1298109,17/12/2014,A032686,Calor Gas Limited
North West Leicestershire District Council,31UH,HLC,Leisure Centres,Hermitage Leisure Centre,General Repairs,Invoice,778.00,1298113,17/12/2014,A020453,Century Electronic Security
North West Leicestershire District Council,31UH,HLC,Leisure Centres,Hermitage Leisure Centre,Contract Payments (Other) Ext,Invoice,"7,519.00",1298114,17/12/2014,A020453,Century Electronic Security
North West Leicestershire District Council,31UH,PROPFM,Property Services,Property Facilities Management,General Repairs,Invoice,304.76,1298117,17/12/2014,A030887,T Denman & Sons (Melton Mowbray) Ltd
North West Leicestershire District Council,31UH,PROPFM,Property Services,Property Facilities Management,General Repairs,Invoice,907.20,1298118,17/12/2014,A030887,T Denman & Sons (Melton Mowbray) Ltd
North West Leicestershire District Council,31UH,ENOT,Street Management,Environment Transport,Transport Costs - Tyres,Invoice,"1,570.00",1298129,17/12/2014,A035175,Malvern Tyres
North West Leicestershire District Council,31UH,HLBC,Leisure Centres,Hermitage Bar & Catering,Catering Provisions,Invoice,424.89,1298140,17/12/2014,A000783,Hopwells Limited
North West Leicestershire District Council,31UH,ENOT,Street Management,Environment Transport,Repairs - Parts,Invoice,413.93,1296817,17/12/2014,A000757,Henton & Chattell Limited
North West Leicestershire District Council,31UH,ENOT,Street Management,Environment Transport,Repairs - Parts,Invoice,"5,591.50",1296955,17/12/2014,A001445,Scarab Sweepers Limited
North West Leicestershire District Council,31UH,ENOP,Street Management,Environment Parks,External Materials,Invoice,566.28,1297751,17/12/2014,A000940,Aggregate Industries Uk Ltd
North West Leicestershire District Council,31UH,ENOT,Street Management,Environment Transport,Routine Ground Maintenance,Invoice,268.39,1297913,17/12/2014,A000671,Glasdon UK Ltd
North West Leicestershire District Council,31UH,LDLS,Legal & Democratic,Legal Services,Books & Publications,Invoice,"4,830.00",1298124,17/12/2014,A037595,Thomson Reuters (Professional) UK Limite
North West Leicestershire District Council,31UH,HS,Housing Strategy,Community - Housing Strategy,Other Services,Invoice,371.83,1298145,17/12/2014,A040181,ADT
North West Leicestershire District Council,31UH,HR,Corporate Director,Human Resources,Interim Support,Invoice,"2,247.00",1298352,17/12/2014,A033121,Libby Carter Limited
North West Leicestershire District Council,31UH,HR,Corporate Director,Human Resources,Interim Support,Invoice,"1,048.60",1298353,17/12/2014,A033121,Libby Carter Limited
North West Leicestershire District Council,31UH,ENOP,Street Management,Environment Parks,External Materials,Invoice,"1,399.62",1298143,17/12/2014,A029800,R & N Plant Specialists
North West Leicestershire District Council,31UH,ECP,Planning & Development,Environment Community Planning,BSC PROJECT AREA - DRUGS & ALCOHOL,Invoice,"2,930.00",1298148,17/12/2014,A041927,Edesix Ltd
North West Leicestershire District Council,31UH,ENOT,Street Management,Environment Transport,Repairs - Parts,Invoice,586.80,1298153,17/12/2014,A000625,Ford & Slater Group Ltd
North West Leicestershire District Council,31UH,PROPCL,Property Services,Property Commercial Lettings,Equipment Operating Leases,Invoice,516.05,1298155,17/12/2014,A032630,Pitney Bowes Finance Plc
North West Leicestershire District Council,31UH,HLBC,Leisure Centres,Hermitage Bar & Catering,Bar Provisions,Invoice,"3,424.28",1298162,17/12/2014,A039915,LWC - Birmingham
North West Leicestershire District Council,31UH,HLBC,Leisure Centres,Hermitage Bar & Catering,Operational Equipment,Invoice,"1,000.00",1298164,17/12/2014,A036775,Dial A Bar
North West Leicestershire District Council,31UH,EBC,Planning & Development,Building Control,Consultants Fees,Invoice,375.00,1298108,17/12/2014,A001121,Millward
North West Leicestershire District Council,31UH,ENOT,Street Management,Environment Transport,Repairs - Parts,Invoice,403.37,1298152,17/12/2014,A000522,Dennis Eagle Limited
North West Leicestershire District Council,31UH,HPLC,Leisure Centres,Hood Park Leisure Centre,Protective Clothing,Invoice,275.00,1298216,17/12/2014,A001386,Revolution
North West Leicestershire District Council,31UH,ENOT,Street Management,Environment Transport,Operational Equipment - Rep & Maint,Invoice,"1,092.00",1298217,17/12/2014,A031879,Maha UK Limited
North West Leicestershire District Council,31UH,ENOT,Street Management,Environment Transport,Operational Equipment,Invoice,"1,368.15",1298223,17/12/2014,A028200,Amberol Limited
North West Leicestershire District Council,31UH,ENOT,Street Management,Environment Transport,Hire Of Operational Equipment,Invoice,365.61,1298227,17/12/2014,A000438,Cuckoo Gap Limited
North West Leicestershire District Council,31UH,HPLC,Leisure Centres,Hood Park Leisure Centre,Electricity,Invoice,251.03,1298234,17/12/2014,A002200,Ivanhoe College
North West Leicestershire District Council,31UH,CDCC,Leisure Centres,Castle Donington Community College,Alternative Fitness Suite,Invoice,505.72,1298238,17/12/2014,A005413,Elliott Group Limited
North West Leicestershire District Council,31UH,ICT,Information Technology,ICT Services,Computing,Invoice,"1,888.00",1298240,17/12/2014,A018592,Orange Plc
North West Leicestershire District Council,31UH,ENOT,Street Management,Environment Transport,Hire Of Transport,Invoice,580.00,1298255,17/12/2014,A038744,First National Plant Rental Limited
North West Leicestershire District Council,31UH,ENOT,Street Management,Environment Transport,Transport Costs - Tyres,Invoice,300.00,1298180,17/12/2014,A034071,S & B Tyres Limited
North West Leicestershire District Council,31UH,ENOT,Street Management,Environment Transport,Purchases,Invoice,480.00,1298178,17/12/2014,A035175,Malvern Tyres
North West Leicestershire District Council,31UH,HLBC,Leisure Centres,Hermitage Bar & Catering,Equipment Operating Leases,Invoice,617.76,1298174,17/12/2014,A029510,Siemens Financial Services Ltd
North West Leicestershire District Council,31UH,ENOT,Street Management,Environment Transport,Purchases,Invoice,"16,881.28",1298256,17/12/2014,A040946,Hall Fuels (Division of Watson Petroleum
North West Leicestershire District Council,31UH,HR,Corporate Director,Human Resources,Personality Profiles,Invoice,250.00,1298137,17/12/2014,A001656,Thomas International Uk Ltd
North West Leicestershire District Council,31UH,HRAHRM,Housing Repairs,HRA Housing Repairs & Maintenance,Protective Clothing,Invoice,459.95,1298138,17/12/2014,A009933,Westbury Industrial Supplies
North West Leicestershire District Council,31UH,ICT,Information Technology,ICT Services,Administrative Equipment,Invoice,"1,125.00",1298218,17/12/2014,A034753,ANS Group Plc
North West Leicestershire District Council,31UH,ICT,Information Technology,ICT Services,Admin Equipment - Maintenance,Invoice,"1,824.58",1298241,17/12/2014,A032826,Freedom Communications (UK) Ltd
North West Leicestershire District Council,31UH,HPBC,Leisure Centres,Hood Park Bar and Catering,Vending Machine Provisions,Invoice,745.01,1298304,17/12/2014,A001264,Palmer Harvey Mclane Ltd
North West Leicestershire District Council,31UH,PROPFM,Property Services,Property Facilities Management,General Repairs,Invoice,"1,621.00",1298342,17/12/2014,A037013,Interserve (formerly Rentokil Initial UK
North West Leicestershire District Council,31UH,PROPCL,Property Services,Property Commercial Lettings,General Repairs,Invoice,270.00,1298358,17/12/2014,A030887,T Denman & Sons (Melton Mowbray) Ltd
North West Leicestershire District Council,31UH,HPLC,Leisure Centres,Hood Park Leisure Centre,Service Contracts,Invoice,"1,919.00",1298184,17/12/2014,A013639,Hamworthy Heating Limited
North West Leicestershire District Council,31UH,HPLC,Leisure Centres,Hood Park Leisure Centre,Minor Improvements Alterations,Invoice,"8,392.75",1298219,17/12/2014,A041819,Sportsart Fitness UK Ltd
North West Leicestershire District Council,31UH,HPLC,Leisure Centres,Hood Park Leisure Centre,Operational Equipment,Invoice,"2,264.25",1298221,17/12/2014,A041819,Sportsart Fitness UK Ltd
North West Leicestershire District Council,31UH,ENOT,Street Management,Environment Transport,Repairs - Parts,Invoice,287.84,1298440,17/12/2014,A000906,Kovacs Limited
North West Leicestershire District Council,31UH,ENOT,Street Management,Environment Transport,Transport Costs - Tyres,Invoice,"1,080.00",1298441,17/12/2014,A035175,Malvern Tyres
North West Leicestershire District Council,31UH,ENOT,Street Management,Environment Transport,Repairs - Parts,Invoice,310.00,1298451,17/12/2014,A039650,Andrew Page Ltd
North West Leicestershire District Council,31UH,ENOT,Street Management,Environment Transport,Items To Be Leased,Invoice,"177,622.00",1298435,17/12/2014,A017895,Geesink Norba Limited
North West Leicestershire District Council,31UH,HLC,Leisure Centres,Hermitage Leisure Centre,Minor Improvements Alterations,Invoice,"13,116.68",1298461,17/12/2014,A001092,John Merison BMC
North West Leicestershire District Council,31UH,HLC,Leisure Centres,Hermitage Leisure Centre,Service Contracts,Invoice,627.62,1296992,17/12/2014,A034993,CSS Pools & Leisure
North West Leicestershire District Council,31UH,HLC,Leisure Centres,Hermitage Leisure Centre,Water Treatment,Invoice,450.30,1296993,17/12/2014,A034993,CSS Pools & Leisure
North West Leicestershire District Council,31UH,HLC,Leisure Centres,Hermitage Leisure Centre,General Repairs,Invoice,268.04,1298222,17/12/2014,A000968,Leisureteq
North West Leicestershire District Council,31UH,ICT,Information Technology,ICT Services,Admin Equipment - Maintenance,Invoice,"2,239.74",1298284,17/12/2014,A001298,Phoenix Software Limited
This report does not include any irrecoverable VAT,,,,,,,,,,,
